bitfinex/quotes_ETHUSD_20220106
["timestamp","ask_amount","ask_price","bid_price","bid_amount"]
[1641456740191,1.45427,3438.8,3438.5,5.8165]
[1641456740990,0.3,3438.7,3438.5,5.8165]
[1641456742391,6.03161513,3438.7,3438.5,5.8165]
[1641456742593,1.0,3438.6,3438.5,5.8165]
[1641456742834,6.03161513,3438.7,3438.5,5.8165]
[1641456746990,4.27725513,3438.7,3438.5,7.00677183]
[1641456747192,4.27725513,3438.7,3438.6,12.37287396]
[1641456747389,4.27725513,3438.7,3438.5,5.8165]
[1641456748792,4.57725513,3438.7,3438.5,5.8165]
[1641456749598,5.35,3438.6,3438.5,5.8165]
[1641456749800,1.0,3438.6,3438.5,5.8165]
[1641456750439,1.3,3438.6,3438.5,5.8165]
[1641456750635,3.23097907,3438.6,3438.5,5.8165]
[1641456751036,3.95828907,3438.6,3438.5,5.8165]
[1641456751635,0.7273648,3438.2,3438.0,2.14223046]
[1641456751839,0.72737,3438.2,3438.0,2.14223046]
[1641456752035,1.02737,3438.2,3438.1,0.00284212]
[1641456752835,1.75474,3438.2,3438.1,0.00284212]
[1641456754783,2.05474,3438.2,3438.1,0.00284212]
[1641456756984,1.45474,3438.2,3438.1,0.00284212]
[1641456758243,3.24389376,3438.2,3438.1,0.00284212]
[1641456758438,3.54389376,3438.2,3438.1,0.00284212]
[1641456758640,5.26089376,3438.2,3438.1,0.00284212]
[1641456758839,20.01919376,3438.2,3438.1,0.00284212]
[1641456759038,20.01919376,3438.2,3437.5,0.01775951]
[1641456759039,6.95,3438.1,3437.5,0.01775951]
[1641456759239,2.18271,3437.8,3437.5,0.01775951]
[1641456759747,0.3,3437.7,3437.5,0.01775951]
[1641456759945,0.3,3437.7,3437.0,7.64777708]
[1641456760245,0.7275685,3437.4,3437.1,0.00284211]
[1641456760445,2.1827185,3437.4,3437.1,0.00284211]
[1641456760644,0.3,3437.3,3437.1,0.00284211]
[1641456760845,1.61381182,3437.2,3437.1,0.00284211]
[1641456761045,1.61381182,3437.2,3436.7,0.00511581]
[1641456761445,0.72754,3437.0,3436.7,0.00511581]
[1641456761685,1.45508,3437.0,3436.7,0.00511581]
[1641456761886,1.75508,3437.0,3436.7,0.00511581]
[1641456762086,2.75508,3437.0,3436.7,0.00511581]
[1641456762288,1.75508,3437.0,3436.7,0.00511581]
[1641456762685,1.75508,3437.0,3436.7,1.42017901]
[1641456762686,2.75508,3437.0,3436.7,1.42017901]
[1641456763087,2.75508,3437.0,3436.8,0.00454738]
[1641456763485,2.75508,3437.0,3436.8,1.41961058]
[1641456763885,2.02754,3437.0,3436.9,0.00397896]
[1641456764085,1.02754,3437.0,3436.9,0.00397896]
[1641456764286,2.02754,3437.0,3436.9,0.00397896]
[1641456764688,1.02754,3437.0,3436.9,0.00397896]
[1641456764891,2.02754,3437.0,3436.9,1.41904216]
[1641456765089,1.02754,3437.0,3436.9,1.41904216]
[1641456765335,2.02754,3437.0,3436.9,0.00397896]
[1641456765535,3.82249198,3437.0,3436.9,0.00397896]
[1641456765734,3.82249198,3437.0,3436.3,0.0073895]
[1641456765938,0.72763,3436.8,3436.1,0.00852635]
[1641456766136,0.3,3436.7,3436.1,0.00852635]
[1641456766835,0.3,3436.7,3436.1,1.48630343]
[1641456767335,0.3,3436.7,3436.2,1.42315478]
[1641456767741,0.3,3436.7,3436.3,0.0073895]
[1641456767940,0.7276,3436.5,3436.3,0.0073895]
[1641456768544,1.0276,3436.5,3436.3,0.0073895]
[1641456768742,1.0276,3436.5,3436.3,1.42258636]
[1641456769189,1.0276,3436.5,3436.4,0.00682108]
[1641456769794,1.0276,3436.5,3436.3,1.41519686]
[1641456769795,1.3276,3436.5,3436.3,1.27742027]
[1641456769994,3.6714966,3436.5,3436.0,1.47777708]
[1641456770198,1.45577,3436.3,3436.0,1.47777708]
[1641456770395,1.45577,3436.3,3436.1,0.00170527]
[1641456770598,0.3,3436.2,3436.1,0.00170527]
[1641456770997,3.17279,3436.2,3436.0,1.47777708]
[1641456771196,2.20899742,3436.2,3436.0,1.47777708]
[1641456771399,2.20899742,3436.2,3434.1,3.91325881]
[1641456771400,14.35,3435.4,3434.1,3.91325881]
[1641456771603,14.35,3435.4,3433.9,0.6925521]
[1641456771604,11.7,3435.2,3434.0,3.13571087]
[1641456771797,1.46845487,3434.8,3434.0,3.13571087]
[1641456771997,0.72825,3434.6,3434.0,3.13571087]
[1641456772197,0.417,3434.5,3434.0,3.13571087]
[1641456772397,0.717,3434.5,3434.0,3.13571087]
[1641456772596,1.017,3434.5,3434.0,3.13571087]
[1641456772841,0.72827,3434.4,3434.0,3.13571087]
[1641456773038,0.3,3434.3,3434.0,3.13571087]
[1641456773336,0.3,3434.3,3434.0,3.08571087]
[1641456773337,0.417,3434.3,3434.0,3.08571087]
[1641456773538,0.417,3434.3,3434.0,4.24974121]
[1641456773735,0.417,3434.3,3433.9,7.18589764]
[1641456773939,0.417,3434.3,3433.9,0.6925521]
[1641456774137,0.417,3434.3,3434.0,0.01193689]
[1641456775945,0.717,3434.3,3434.0,0.01193689]
[1641456776347,1.017,3434.3,3434.0,0.01193689]
[1641456780332,0.717,3434.3,3434.0,4.18510726]
[1641456780540,5.8171,3434.7,3434.0,1.27575013]
[1641456780734,5.8171,3434.7,3434.1,0.01136847]
[1641456780937,5.8171,3434.7,3434.4,1.83567447]
[1641456781133,5.8171,3434.7,3434.6,13.90557744]
[1641456781334,4.4104,3434.7,3434.6,1.00557744]
[1641456781536,0.34637103,3435.5,3434.9,0.72782]
[1641456781937,0.34637103,3435.5,3435.0,0.00625266]
[1641456782534,0.34637103,3435.5,3435.3,1.91738037]
[1641456782734,3.3009,3436.2,3435.9,1.20111985]
[1641456782934,0.417,3437.1,3435.9,1.20111985]
[1641456783138,5.536,3437.2,3435.9,1.20111985]
[1641456783336,0.00113685,3436.3,3435.9,1.20111985]
[1641456784078,0.00113685,3436.3,3436.2,0.72764]
[1641456785688,0.00113685,3436.3,3436.2,1.51354]
[1641456786084,0.00113685,3436.3,3436.2,1.51559044]
[1641456787835,0.00113685,3436.3,3436.2,0.72969044]
[1641456789542,0.00113685,3436.3,3436.2,1.83734316]
[1641456792189,0.00113685,3436.3,3436.2,1.96804316]
[1641456792389,4.57725513,3436.5,3436.3,12.5]
[1641456792589,4.57725513,3436.5,3436.3,14.682108]
[1641456792788,7.2958,3438.1,3437.3,1.2319235]
[1641456793090,0.00682108,3437.5,3437.3,0.6286]
[1641456793491,0.00625266,3437.4,3437.3,0.6286]
[1641456793896,0.00625266,3437.4,3437.3,4.86726699]
[1641456794092,0.00625266,3437.4,3437.3,5.59458699]
[1641456794292,0.42958639,3438.9,3437.3,5.59458699]
[1641456794293,0.42958639,3438.9,3438.3,1.21061396]
[1641456794592,0.42958639,3438.9,3437.4,8.2]
[1641456794593,0.0073895,3438.7,3438.2,0.6516]
[1641456794994,0.00682108,3438.6,3438.2,0.6516]
[1641456795332,0.00625265,3438.5,3438.2,0.6516]
[1641456795532,0.00625265,3438.5,3438.1,0.66578372]
[1641456795835,0.00568423,3438.4,3438.1,0.66578372]
[1641456796235,0.00511581,3438.3,3438.1,0.66578372]
[1641456796634,0.00454738,3438.2,3438.1,0.66578372]
[1641456797236,0.00454738,3438.2,3438.0,0.72724]
[1641456797636,0.00397896,3438.1,3438.0,0.72724]
[1641456798638,3.28982727,3438.1,3438.0,0.72724]
[1641456798837,7.15524282,3438.1,3438.0,0.72724]
[1641456799083,7.45524282,3438.1,3438.0,0.72724]
[1641456799284,7.45524282,3438.1,3437.9,1.45436]
[1641456799690,0.00341054,3438.0,3437.5,1.45452]
[1641456799888,1.00341054,3438.0,3437.4,0.01788238]
[1641456800090,1.00341054,3438.0,3437.1,0.72742]
[1641456800091,0.00284211,3437.9,3437.1,0.72742]
[1641456800289,0.00284211,3437.9,3436.8,1.45484]
[1641456800489,3.86768924,3437.8,3437.2,0.00113685]
[1641456800693,6.0156795,3437.8,3436.8,1.42849922]
[1641456800892,0.00284212,3437.7,3436.9,0.00170527]
[1641456801300,0.00227369,3437.6,3436.9,0.00170527]
[1641456801492,2.89649098,3437.3,3436.9,0.00170527]
[1641456801891,3.49649098,3437.3,3436.9,0.00170527]
[1641456802091,3.49649098,3437.3,3437.1,0.72742]
[1641456802293,3.49649098,3437.3,3436.9,0.00170527]
[1641456802493,2.23365569,3437.0,3436.9,0.00170527]
[1641456802691,2.23365569,3437.0,3436.5,0.00397896]
[1641456802938,2.53365569,3437.0,3436.5,0.00397896]
[1641456803131,1.0,3436.9,3436.5,0.00397896]
[1641456803332,2.53365569,3437.0,3436.5,0.00397896]
[1641456803532,0.6,3437.0,3436.5,0.00397896]
[1641456803937,6.48233929,3437.0,3436.5,0.00397896]
[1641456804133,6.78233929,3437.0,3436.5,0.00397896]
[1641456804942,1.93308918,3436.8,3436.5,0.00397896]
[1641456805144,2.23308918,3436.8,3436.5,0.73150896]
[1641456805342,2.53308918,3436.8,3436.5,0.73150896]
[1641456805543,2.53308918,3436.8,3436.6,0.00341054]
[1641456806789,3.28584831,3436.7,3436.6,0.00341054]
[1641456807187,3.28584831,3436.7,3436.6,0.00437226]
[1641456809192,3.28584831,3436.7,3436.6,20.91437226]
[1641456809387,3.28584831,3436.7,3436.6,0.00437226]
[1641456809787,3.58584831,3436.7,3436.6,0.00437226]
[1641456811444,3.58584831,3436.7,3436.6,2.87491484]
[1641456811846,3.58584831,3436.7,3436.6,3.71897209]
[1641456812343,3.58584831,3436.7,3436.6,0.84842951]
[1641456813146,3.58584831,3436.7,3436.6,0.00437226]
[1641456816894,0.3,3436.7,3436.6,0.00437226]
[1641456817493,0.00170527,3437.5,3437.0,0.72745]
[1641456817938,0.00113685,3437.4,3437.0,0.72745]
[1641456818342,0.30397896,3437.9,3437.0,0.72745]
[1641456818543,2.08384584,3437.8,3437.0,0.72745]
[1641456818742,0.00341054,3437.8,3437.0,0.72745]
[1641456818943,0.00284212,3437.7,3437.0,0.72745]
[1641456819245,0.00227369,3437.6,3437.0,0.72745]
[1641456819645,0.00170527,3437.5,3437.0,0.72745]
[1641456820042,0.00113685,3437.4,3437.0,0.72745]
[1641456820443,0.00341054,3437.8,3437.0,0.72745]
[1641456820647,0.00341054,3437.8,3437.2,1.30047465]
[1641456820846,8.5074,3438.5,3437.2,1.30047465]
[1641456820847,0.00284212,3437.7,3437.5,0.72736]
[1641456821245,0.00227369,3437.6,3437.5,0.72736]
[1641456825542,4.74803121,3437.6,3437.5,0.72736]
[1641456826038,5.34803121,3437.6,3437.5,0.72736]
[1641456826841,5.34803121,3437.6,3437.5,3.54704702]
[1641456826842,1.76208808,3437.6,3437.5,3.54704702]
[1641456827241,1.46208808,3437.6,3437.5,3.54704702]
[1641456827444,1.46208808,3437.6,3437.5,20.45704702]
[1641456827642,1.93308918,3437.8,3437.7,0.72709]
[1641456827942,0.00113685,3437.8,3437.7,4.45868113]
[1641456828543,0.00113685,3437.8,3437.7,5.45868113]
[1641456828846,0.00113685,3437.8,3437.7,1.57909]
[1641456830600,0.00113685,3437.8,3437.7,0.72709]
[1641456839302,0.00113685,3437.8,3437.7,0.72871716]
[1641456842242,0.00113685,3437.8,3437.7,3.60808578]
[1641456842642,1.46197356,3438.1,3437.9,1.94413014]
[1641456842845,0.02437356,3438.1,3438.0,31.26]
[1641456843145,2.89649098,3438.6,3438.1,14.0]
[1641456843342,5.81795042,3438.9,3438.4,0.7269]
[1641456843542,1.95253487,3438.9,3438.4,0.9656]
[1641456844493,2.89649098,3439.1,3438.4,0.9656]
[1641456844693,2.89649098,3439.1,3438.7,0.72696]
[1641456844895,0.00682108,3439.0,3438.7,0.72696]
[1641456845293,0.00625266,3438.9,3438.7,0.72696]
[1641456845700,0.00568424,3438.8,3438.7,0.72696]
[1641456850747,0.00568424,3438.8,3438.2,5.817]
[1641456851146,0.72721,3438.6,3438.2,5.817]
[1641456851350,1.4857274,3438.6,3438.2,5.817]
[1641456851589,0.30397896,3438.5,3438.2,5.817]
[1641456851995,0.00341054,3438.4,3438.2,5.817]
[1641456852393,0.00284212,3438.3,3438.2,5.817]
[1641456855101,1.00284212,3438.3,3438.2,5.817]
[1641456855353,4.4145885,3438.3,3438.2,5.817]
[1641456855753,1.30284212,3438.3,3438.2,5.817]
[1641456856153,0.30284212,3438.3,3438.2,5.817]
[1641456857550,5.30284212,3438.3,3438.2,5.817]
[1641456858151,6.30284212,3438.3,3438.2,5.817]
[1641456858350,5.30284212,3438.3,3438.2,5.817]
[1641456858549,6.30284212,3438.3,3438.2,5.817]
[1641456858954,5.30284212,3438.3,3438.2,5.817]
[1641456861600,5.00284212,3438.3,3438.2,7.50087747]
[1641456861799,5.00284212,3438.3,3438.2,8.22797747]
[1641456862201,5.00284212,3438.3,3438.2,6.5441]
[1641456862842,7.81904288,3438.3,3438.2,6.99483972]
[1641456863043,8.11904288,3438.3,3438.2,6.99483972]
[1641456864848,5.30284212,3438.3,3438.2,6.5441]
[1641456865548,5.30284212,3438.3,3438.2,6.99502997]
[1641456865750,8.12175309,3438.3,3438.2,6.99502997]
[1641456866250,8.12175309,3438.3,3438.2,6.26792997]
[1641456867494,11.0626752,3438.3,3438.2,6.26792997]
[1641456867692,11.0626752,3438.3,3437.6,1.47462489]
[1641456867693,9.15,3438.2,3437.6,1.47462489]
[1641456867893,0.7273195,3438.0,3437.6,1.47462489]
[1641456868094,6.1169,3437.9,3437.6,0.01800559]
[1641456868292,6.4169,3437.9,3437.6,0.01800559]
[1641456868493,2.45496,3437.8,3437.6,0.01800559]
[1641456868695,7.43278128,3437.7,3437.6,0.01800559]
[1641456869091,5.3,3437.6,3437.0,1.4566193]
[1641456869297,5.8169,3437.5,3437.0,1.4566193]
[1641456869500,7.1444141,3437.5,3437.4,0.00113684]
[1641456869699,7.17640507,3437.5,3437.4,0.00113684]
[1641456870098,1.7998997,3437.0,3436.5,0.00625265]
[1641456870347,2.0998997,3437.0,3436.5,0.00625265]
[1641456870548,3.78735207,3436.9,3436.8,0.01813234]
[1641456870748,1.02758,3436.9,3436.8,0.01813234]
[1641456870949,1.02758,3436.9,3436.8,0.02267972]
[1641456871346,1.02758,3436.9,3436.8,0.00454738]
[1641456871747,0.72758,3436.9,3436.7,0.00511581]
[1641456871949,1.49277285,3437.3,3436.7,0.00511581]
[1641456872550,1.4549783,3437.3,3436.7,0.00511581]
[1641456873150,0.6,3437.2,3436.7,0.00511581]
[1641456873551,8.9353,3437.5,3436.7,0.00511581]
[1641456873952,5.8169,3437.5,3436.7,0.00511581]
[1641456874205,5.8169,3437.5,3436.9,0.72733]
[1641456874408,5.8169,3437.5,3437.2,0.72733]
[1641456874811,6.4169,3437.5,3437.3,0.00170527]
[1641456875410,6.4169,3437.5,3437.0,0.00341054]
[1641456875609,0.7274528,3437.4,3436.7,0.00511581]
[1641456876412,6.4169,3437.5,3436.8,0.72742]
[1641456876612,6.4169,3437.5,3436.7,1.70215656]
[1641456876813,6.4169,3437.5,3436.9,0.00397896]
[1641456877112,6.4169,3437.5,3436.8,0.00454738]
[1641456877315,6.4169,3437.5,3436.8,1.33842703]
[1641456877515,6.4169,3437.5,3437.0,0.7273]
[1641456877960,6.4169,3437.5,3437.1,0.00284211]
[1641456878557,6.4169,3437.5,3437.0,0.00341054]
[1641456878956,6.4169,3437.5,3436.8,0.00454738]
[1641456879466,6.4169,3437.5,3436.9,2.00966199]
[1641456879760,6.4169,3437.5,3437.0,0.00341054]
[1641456880663,6.4169,3437.5,3437.2,0.72726]
[1641456880864,6.4169,3437.5,3437.0,0.00341054]
[1641456881062,6.4169,3437.5,3437.3,0.00170527]
[1641456881364,6.4169,3437.5,3436.7,2.9112093]
[1641456881365,6.4169,3437.5,3436.8,1.46116668]
[1641456881799,6.4169,3437.5,3436.9,0.00397896]
[1641456881995,6.4169,3437.5,3436.9,0.00487725]
[1641456882396,6.4169,3437.5,3437.0,0.00341054]
[1641456884300,6.4169,3437.5,3437.0,0.73078054]
[1641456884701,6.4169,3437.5,3437.1,0.00284211]
[1641456884901,6.4169,3437.5,3437.1,1.45742211]
[1641456885338,6.4169,3437.5,3437.2,0.72957369]
[1641456885740,6.4169,3437.5,3437.3,0.00170527]
[1641456888247,6.4169,3437.5,3437.3,0.36099068]
[1641456889291,6.4169,3437.5,3437.3,1.53618536]
[1641456889501,5.8169,3437.5,3437.3,1.53618536]
[1641456889698,5.8169,3437.5,3437.4,20.95720956]
[1641456889898,0.00170527,3438.1,3437.9,1.01862773]
[1641456890102,1.92387306,3438.1,3437.8,0.1746]
[1641456890301,1.92387306,3438.1,3437.9,5.8174]
[1641456890302,0.0022737,3438.0,3437.9,5.8174]
[1641456891100,0.0022737,3438.0,3437.9,7.27163]
[1641456891501,0.0022737,3438.0,3437.2,1.4566193]
[1641456891502,0.72709,3437.9,3437.2,1.4566193]
[1641456891702,3.19916423,3437.8,3437.2,1.4566193]
[1641456891901,0.00113685,3437.8,3437.3,0.37912168]
[1641456892104,0.00113685,3437.8,3437.7,1.94214642]
[1641456892302,5.81893685,3437.8,3437.7,1.94214642]
[1641456892502,5.81893685,3437.8,3437.4,2.87904093]
[1641456892503,3.05785358,3437.5,3437.4,2.87904093]
[1641456892845,3.35785358,3437.5,3437.4,2.88072461]
[1641456894446,3.35785358,3437.5,3437.4,0.00168368]
[1641456901346,3.05785358,3437.5,3437.4,0.00168368]
[1641456901543,5.81893685,3437.8,3437.4,17.32868368]
[1641456901742,5.81893685,3437.8,3437.7,8.2932058]
[1641456901944,5.81893685,3437.8,3437.7,18.7532058]
[1641456902143,0.72709,3437.9,3437.8,26.21]
[1641456902344,1.94409814,3439.1,3437.9,13.8]
[1641456902544,1.94409814,3439.1,3438.1,1.22891693]
[1641456902750,1.94409814,3439.1,3438.0,17.91]
[1641456902751,0.00227369,3438.2,3438.0,2.18088]
[1641456902949,0.00227369,3438.2,3437.1,3.94259955]
[1641456902950,12.3,3437.9,3437.1,3.94259955]
[1641456903149,0.01265395,3438.1,3437.1,3.94259955]
[1641456903150,0.01288725,3437.2,3437.1,3.94259955]
[1641456903347,1.16568725,3437.2,3437.1,3.94259955]
[1641456903747,7.58448725,3437.2,3437.1,3.94259955]
[1641456903947,4.71511354,3437.2,3437.1,3.94259955]
[1641456904203,13.95308725,3437.2,3436.8,0.0181306]
[1641456904409,1.1446168,3437.1,3436.8,4.94638003]
[1641456904705,1.4552532,3437.0,3436.9,0.00341054]
[1641456904906,0.417,3437.0,3436.9,0.00341054]
[1641456905107,4.70308725,3437.2,3436.9,0.00341054]
[1641456905407,4.70308725,3437.2,3436.9,0.73067054]
[1641456905709,4.70308725,3437.2,3437.0,1.78878015]
[1641456906104,4.70308725,3437.2,3437.1,0.00227369]
[1641456906906,4.70308725,3437.2,3437.0,0.00284212]
[1641456907106,5.30308725,3437.2,3436.6,1.45989581]
[1641456907508,5.30308725,3437.2,3436.7,0.00454739]
[1641456907708,5.30308725,3437.2,3436.9,1.65582523]
[1641456908142,5.30308725,3437.2,3437.0,0.00284212]
[1641456908347,4.70308725,3437.2,3437.0,0.00284212]
[1641456908943,4.70308725,3437.2,3437.0,0.39004016]
[1641456909344,4.70308725,3437.2,3437.1,0.00227369]
[1641456909547,4.75958761,3437.2,3437.1,0.00227369]
[1641456909747,5.35958761,3437.2,3437.1,0.00227369]
[1641456910651,5.05958761,3437.2,3437.1,0.00227369]
[1641456910854,5.35958761,3437.2,3436.8,0.00397896]
[1641456911046,5.35958761,3437.2,3437.0,1.05999247]
[1641456911047,5.05958761,3437.2,3437.0,1.05999247]
[1641456911249,5.05958761,3437.2,3437.0,1.97111325]
[1641456911447,5.05958761,3437.2,3437.1,0.00227369]
[1641456912701,5.05958761,3437.2,3437.1,1.86499931]
[1641456913101,5.05958761,3437.2,3437.1,0.00227369]
[1641456913904,5.35958761,3437.2,3437.1,0.00227369]
[1641456914706,5.35958761,3437.2,3436.8,0.00397896]
[1641456914908,6.08708871,3437.2,3436.8,0.00397896]
[1641456915104,6.03058835,3437.2,3436.8,0.00397896]
[1641456915345,6.03058835,3437.2,3436.3,1.96669468]
[1641456915346,0.05650036,3437.0,3436.7,0.00454739]
[1641456915551,4.70308725,3436.9,3436.4,0.00625266]
[1641456915954,1.0,3436.8,3436.4,0.00625266]
[1641456916154,6.15844025,3436.7,3436.4,0.00625266]
[1641456916352,0.3,3436.5,3436.3,0.00682108]
[1641456916553,4.70308725,3436.4,3436.3,0.00682108]
[1641456916952,6.00308725,3436.4,3436.3,0.00682108]
[1641456917854,6.73086725,3436.4,3435.7,0.02836692]
[1641456918051,1.0,3436.3,3435.7,0.02836692]
[1641456918250,4.0408084,3436.3,3435.8,0.0096632]
[1641456918454,0.7277796,3436.1,3435.8,0.0096632]
[1641456918656,1.0277796,3436.1,3435.8,0.0096632]
[1641456918854,1.3277796,3436.1,3435.8,0.0096632]
[1641456919504,0.6,3436.1,3435.8,0.0096632]
[1641456919701,0.6,3436.1,3435.6,0.01080005]
[1641456919702,0.3,3436.1,3435.6,0.01080005]
[1641456919907,2.0277083,3436.3,3435.6,0.01080005]
[1641456919908,0.3,3436.2,3435.6,0.01080005]
[1641456920302,0.3,3436.2,3435.6,1.97749473]
[1641456920501,1.6,3436.3,3435.6,1.97749473]
[1641456920703,0.05650036,3436.0,3435.7,0.01023162]
[1641456921205,0.05650036,3436.0,3435.7,1.9769263]
[1641456921602,0.05650036,3436.0,3435.8,0.0096632]
[1641456922402,3.28632132,3435.9,3435.8,0.0096632]
[1641456923056,0.05650036,3436.0,3435.8,0.0096632]
[1641456923555,0.05650036,3436.0,3435.9,1.05480283]
[1641456923859,0.05650036,3436.0,3435.9,1.06389761]
[1641456924859,5.00308725,3436.4,3435.9,1.06389761]
[1641456925261,5.30308725,3436.4,3436.0,0.00852635]
[1641456925461,3.28616154,3436.3,3436.0,0.00852635]
[1641456925861,3.28616154,3436.3,3436.0,2.84906724]
[1641456926262,3.28616154,3436.3,3436.1,0.00795793]
[1641456926464,3.28616154,3436.3,3436.1,1.35914793]
[1641456926696,3.28616154,3436.3,3436.2,3.01153632]
[1641456926899,4.70308725,3436.4,3436.2,1.87396996]
[1641456927094,4.70308725,3436.4,3436.3,1.45477]
[1641456927295,4.70308725,3436.4,3436.3,4.73302795]
[1641456927504,4.70308725,3436.4,3436.3,21.64302795]
[1641456927902,1.46127294,3437.3,3436.4,7.3]
[1641456928101,1.46127294,3437.3,3436.8,0.72734]
[1641456928301,1.76127294,3437.3,3436.8,0.72734]
[1641456928501,2.06127294,3437.3,3436.8,0.72734]
[1641456928904,1.76127294,3437.3,3437.2,1.22745825]
[1641456929107,1.46127294,3437.3,3437.2,21.08949623]
[1641456929303,1.94653647,3437.6,3437.2,21.5082015]
[1641456929704,1.94653647,3437.6,3437.3,0.00113685]
[1641456929904,1.94653647,3437.6,3437.4,0.417]
[1641456930104,1.94653647,3437.6,3437.4,18.05412]
[1641456930749,1.94653647,3437.6,3437.5,5.8182]
[1641456930950,1.94653647,3437.6,3437.5,23.1452]
[1641456931152,0.00284212,3438.0,3437.5,24.56322179]
[1641456931350,0.00284212,3438.0,3437.7,0.72717]
[1641456931555,0.00227369,3437.9,3437.7,2.3958392]
[1641456931752,0.00227369,3437.9,3437.7,0.72717]
[1641456931951,0.3,3438.2,3437.6,0.72717]
[1641456932251,0.30227369,3438.2,3437.6,1.41802179]
[1641456932452,1.30227369,3438.2,3437.6,1.41802179]
[1641456932652,3.031429,3438.1,3437.6,1.41802179]
[1641456933052,0.7274469,3437.9,3437.5,5.8182]
[1641456933553,0.6,3437.8,3437.6,0.00113685]
[1641456933952,0.72749,3437.7,3437.6,0.00113685]
[1641456934198,5.12749,3437.7,3437.6,0.00113685]
[1641456934401,5.42749,3437.7,3437.6,0.00113685]
[1641456934603,6.42749,3437.7,3437.6,0.00113685]
[1641456935504,9.46942099,3437.7,3437.6,0.00113685]
[1641456935904,20.53732099,3437.7,3437.6,0.00113685]
[1641456936305,15.28732099,3437.7,3437.6,0.00113685]
[1641456936706,19.2081409,3437.7,3437.6,0.00113685]
[1641456938446,16.16620991,3437.7,3437.6,0.00113685]
[1641456938848,20.02662694,3437.7,3437.6,0.00113685]
[1641456939249,11.76620991,3437.7,3437.6,0.00113685]
[1641456940553,7.84539,3437.7,3437.6,0.00113685]
[1641456942504,10.77340959,3437.7,3437.6,0.00113685]
[1641456943705,10.04591959,3437.7,3437.6,0.00113685]
[1641456945011,11.98280144,3437.7,3437.6,0.35402985]
[1641456945848,10.02718126,3437.7,3437.6,0.00113685]
[1641456948750,15.02718126,3437.7,3437.6,0.00113685]
[1641456950811,14.72718126,3437.7,3437.6,0.00113685]
[1641456952409,13.72718126,3437.7,3437.6,0.00113685]
[1641456952850,7.90866126,3437.7,3437.6,0.00113685]
[1641456953453,2.09026126,3437.7,3437.6,0.00113685]
[1641456955659,3.09026126,3437.7,3437.6,0.00113685]
[1641456955861,2.09026126,3437.7,3437.6,0.00113685]
[1641456956626,2.09026126,3437.7,3437.6,0.30113685]
[1641456956826,1.95802418,3437.8,3437.6,0.30113685]
[1641456957025,1.95802418,3437.8,3437.6,1.02846685]
[1641456958734,1.95802418,3437.8,3437.6,0.72846685]
[1641456959234,0.00113685,3438.0,3437.6,0.72846685]
[1641456959433,0.00113685,3438.0,3437.8,0.7272621]
[1641456960234,3.22718321,3438.1,3437.8,0.7272621]
[1641456960456,3.15562987,3438.1,3437.8,0.7272621]
[1641456960859,1.0,3438.0,3437.8,0.7272621]
[1641456961055,2.92801959,3438.1,3437.8,0.7272621]
[1641456962260,2.92801959,3438.1,3437.9,0.72728]
[1641456962459,2.92801959,3438.1,3437.9,2.181892]
[1641456964413,2.92801959,3438.1,3438.0,2.11707811]
[1641456964710,2.92801959,3438.1,3437.9,2.181892]
[1641456965511,2.92801959,3438.3,3438.0,0.72727]
[1641456965712,2.92801959,3438.3,3438.1,1.4544956]
[1641456965911,2.92972486,3438.3,3438.1,1.4544956]
[1641456966111,1.0,3438.2,3438.1,1.4544956]
[1641456967111,3.92801959,3438.2,3438.1,1.4544956]
[1641456967711,3.92801959,3438.2,3438.1,0.72725]
[1641456969367,1.0,3438.2,3438.1,0.72725]
[1641456969568,2.92972486,3438.3,3438.1,0.72725]
[1641456970169,2.94319087,3438.2,3438.1,0.72725]
[1641456970571,2.94319087,3438.2,3438.1,0.72838685]
[1641456970968,2.94319087,3438.3,3438.1,0.72838685]
[1641456971368,6.2,3438.2,3438.1,0.72838685]
[1641456971810,9.14319087,3438.2,3438.1,0.72838685]
[1641456972909,3.94319087,3438.2,3438.1,0.72838685]
[1641456973513,1.0,3438.2,3438.1,3.12838685]
[1641456973913,1.72735,3438.3,3438.1,3.12838685]
[1641456975017,5.42460425,3438.2,3438.1,3.12838685]
[1641456975456,6.42460425,3438.2,3438.1,3.12838685]
[1641456975660,3.48186529,3438.2,3438.1,3.12838685]
[1641456979613,3.44956529,3438.2,3438.1,3.12838685]
[1641456981416,5.40018118,3438.2,3438.1,3.12838685]
[1641456981819,5.40018118,3438.2,3438.1,0.72838685]
[1641456982218,1.0,3438.2,3438.1,0.72838685]
[1641456982623,2.02735,3438.3,3438.1,0.72838685]
[1641456982857,1.72735,3438.3,3438.1,0.72838685]
[1641456983060,5.817,3438.2,3438.1,0.72838685]
[1641456983459,6.817,3438.2,3438.1,0.72838685]
[1641456986366,6.817,3438.2,3438.1,3.72838685]
[1641456987215,5.817,3438.2,3438.1,3.72838685]
[1641456988615,6.817,3438.2,3438.1,3.72838685]
[1641456995515,6.817,3438.2,3438.1,0.72838685]
[1641456997213,6.817,3438.2,3438.1,2.72838685]
[1641456998059,6.817,3438.2,3438.1,5.07838685]
[1641456998263,5.817,3438.2,3438.1,5.07838685]
[1641456998560,5.817,3438.2,3438.1,6.01708685]
[1641456998961,1.95343527,3438.2,3438.1,6.31708685]
[1641456999359,1.95343527,3438.2,3438.1,6.01708685]
[1641456999564,5.0,3438.3,3438.1,6.31708685]
[1641456999765,5.0,3438.3,3438.1,7.47137015]
[1641456999964,5.0,3438.3,3438.1,6.74424015]
[1641457000565,2.40835612,3438.2,3438.1,7.60037349]
[1641457001612,6.46653205,3438.3,3438.1,7.60037349]
[1641457001816,6.46653205,3438.3,3438.1,7.87787349]
[1641457002015,0.65015205,3438.2,3438.1,7.87787349]
[1641457002315,0.65015205,3438.2,3438.1,32.05921349]
[1641457002517,3.92081991,3439.0,3438.2,14.35]
[1641457002716,3.92081991,3439.0,3438.9,1.9546411]
[1641457003017,3.86041703,3439.2,3438.9,3.2611411]
[1641457003018,1.96620694,3439.2,3438.9,3.2611411]
[1641457003414,0.0022737,3439.1,3438.9,3.2611411]
[1641457003616,0.0022737,3439.1,3439.0,0.72687]
[1641457003816,3.91338555,3439.4,3439.0,0.94877]
[1641457004021,3.91338555,3439.4,3439.1,1.76389519]
[1641457004217,0.00341054,3439.3,3439.1,1.76389519]
[1641457004723,0.00284212,3439.2,3439.1,3.21774519]
[1641457005026,0.00284212,3439.2,3439.1,20.42774519]
[1641457005220,0.00284212,3439.2,3439.1,21.15469519]
[1641457005662,0.63671517,3439.5,3439.1,21.15469519]